fUST/lending_fUST_20260107
["ID","MTS","AMOUNT","RATE_DAILY","PERIOD"]
[400679698,1767778241465,-2811.62,0.000194,2]
[400679699,1767778241478,-160.0,0.00019523,2]
[400679700,1767778241487,-1041.66666667,0.00019523,2]
[400679701,1767778241497,-1549.57669197,0.00019726,2]
[400679702,1767778241506,-1972.0,0.0002,2]
[400679703,1767778241517,-210.20532748,0.0002,2]
[400679704,1767778241526,-181.25348447,0.0002,2]
[400679705,1767778241536,-632.73035631,0.0002,2]
[400679706,1767778241548,-14686.18217338,0.0002,2]
[400679707,1767778241557,-300.05779371,0.0002,7]
[400679708,1767778241566,-371.23034443,0.0002,2]
[400679709,1767778241575,-599.02649061,0.0002,2]
[400679710,1767778241585,-696.84890501,0.0002,2]
[400679711,1767778241594,-23000.0,0.0002,2]
[400679712,1767778241604,-202.52017028,0.0002,2]
[400679713,1767778241613,-503.77278596,0.0002,2]
[400679714,1767778241623,-159.84863644,0.0002,2]
[400679715,1767778241632,-1000.0,0.00020085,2]
[400679716,1767778241643,-492.0,0.00020085,2]
[400679717,1767778241652,-346.1,0.00020122,2]
[400679718,1767778241662,-459.50208546,0.0002013,2]
[400679719,1767778241671,-421.1618309,0.00020228,2]
[400679720,1767778241681,-2245.401059,0.00020548,2]
[400679721,1767778241690,-1387.87898167,0.0002061,2]
[400679722,1767778241699,-256.20863618,0.000209,2]
[400679723,1767778241709,-500.71,0.00021,7]
[400679724,1767778241718,-277.06974618,0.00021,2]
[400679725,1767778241727,-1081.32871409,0.00021,10]
[400679726,1767778241737,-50000.0,0.00021,2]
[400679727,1767778241747,-187.815389,0.00021,2]
[400679728,1767778241756,-151.0,0.00021,2]
[400679729,1767778241765,-151.0,0.00021,2]
[400679730,1767778241775,-187.815389,0.00021,2]
[400679731,1767778241785,-151.0,0.00021,2]
[400679732,1767778241795,-187.815389,0.00021,2]
[400679733,1767778241809,-187.815389,0.00021,2]
[400679734,1767778241819,-151.0,0.00021,2]
[400679735,1767778241829,-151.0,0.00021,2]
[400679736,1767778241839,-183.522133,0.00021,2]
[400679737,1767778241849,-193.751702,0.00021,2]
[400679738,1767778241859,-440.287203,0.00021,2]
[400679739,1767778241869,-440.287203,0.00021,2]
[400679740,1767778241879,-440.287203,0.00021,2]
[400679741,1767778241889,-440.287203,0.00021,2]
[400679742,1767778241899,-151.0,0.00021,2]
[400679743,1767778241909,-185.60635,0.00021,2]
[400679744,1767778241918,-185.60635,0.00021,2]
[400679745,1767778241928,-151.0,0.00021,2]
[400679746,1767778241938,-185.60635,0.00021,2]
[400679747,1767778241947,-151.0,0.00021,2]
[400679748,1767778241957,-185.60635,0.00021,2]
[400679749,1767778241967,-182.25330539,0.000215,2]
[400679750,1767778241978,-1038.80075693,0.000215,2]
[400679751,1767778241988,-12849.42882741,0.000215,2]
[400679752,1767778241998,-283.8,0.00021532,2]
[400679753,1767778242008,-171.0,0.00021589,5]
[400679754,1767778242018,-346.1,0.00021698,2]
[400679755,1767778242027,-1703.61772074,0.00021843,2]
[400679756,1767778242036,-160.0,0.0002193,2]
[400679757,1767778242047,-879.43912167,0.0002193,2]
[400679758,1767778242056,-160.0,0.0002193,2]
[400679759,1767778242066,-160.79089558,0.0002193,2]
[400679760,1767778242075,-250.0,0.0002193,2]
[400679761,1767778242086,-187.78006526,0.0002193,2]
[400679762,1767778242095,-500.0,0.0002193,2]
[400679763,1767778242105,-1500.0,0.0002193,2]
[400679764,1767778242115,-265.04542702,0.0002193,2]
[400679765,1767778242124,-500.0,0.0002193,2]
[400679766,1767778242134,-1500.0,0.0002193,2]
[400679767,1767778242146,-250.0,0.0002193,2]
[400679768,1767778242155,-1500.0,0.0002193,2]
[400679769,1767778242165,-500.0,0.0002193,2]
[400679770,1767778242175,-250.0,0.0002193,2]
[400679771,1767778242184,-1500.0,0.0002193,2]
[400679772,1767778242194,-500.0,0.0002193,2]
[400679773,1767778242204,-252.94566259,0.0002193,2]
[400679774,1767778242214,-30000.0,0.0002193,2]
[400679775,1767778242294,-1189.60316379,0.0002193,2]
[400679776,1767778242303,-500.0,0.0002193,2]
[400679777,1767778242313,-500.0,0.0002193,2]
[400679778,1767778242322,-562.53594477,0.0002193,2]
[400679779,1767778242332,-151.0,0.0002193,2]
[400679780,1767778242340,-151.0,0.0002193,2]
[400679781,1767778242350,-157.242965,0.0002193,2]
[400679782,1767778242359,-250.0,0.0002193,2]
[400679783,1767778242369,-250.0,0.0002193,2]
[400679784,1767778242378,-250.0,0.0002193,2]
[400679785,1767778242388,-250.0,0.0002193,2]
[400679786,1767778242397,-514.84070869,0.0002193,2]
[400679787,1767778242406,-250.0,0.0002193,2]
[400679788,1767778242416,-250.0,0.0002193,2]
[400679789,1767778242425,-250.0,0.0002193,2]
[400679790,1767778242434,-250.0,0.0002193,2]
[400679791,1767778242443,-250.0,0.0002193,2]
[400679792,1767778242452,-250.0,0.0002193,2]
[400679793,1767778242463,-250.0,0.0002193,2]
[400679794,1767778242472,-250.83955872,0.0002193,2]
[400679795,1767778242485,-302.29046048,0.0002193,2]
[400679796,1767778242495,-2487.15318209,0.0002193,2]
[400679797,1767778242504,-151.0,0.0002193,2]
[400679798,1767778242513,-568.10876052,0.0002196,10]
[400679799,1767778242523,-90000.0,0.00022,2]
[400679800,1767778242532,-171.84386487,0.00022,10]
[400679801,1767778242542,-64723.72893292,0.00022,7]
[400679803,1767778242551,-828.88420571,0.00022,20]
[400679805,1767778242560,-33706.85557129,0.00022,2]
[400679806,1767778242570,-1000.0,0.00022093,10]
[400679808,1767778242579,-1924.25,0.000221,7]
[400679810,1767778242588,-243.07,0.000221,7]
[400679812,1767778242597,-465.23690623,0.00022228,2]
[400679813,1767778242607,-300.0,0.00022466,2]
[400679814,1767778242617,-31110.0,0.00022478,2]
[400679815,1767778242626,-533.88981491,0.00022478,2]
[400679816,1767778242638,-2579.17784983,0.00022478,2]
[400679817,1767778242648,-1032.71087693,0.000225,2]
[400679818,1767778242657,-1041.66666667,0.00023,3]
[400679819,1767778242667,-450.0,0.00023014,2]
[400679820,1767778242678,-32261.07,0.00023026,2]
[400679821,1767778242687,-553.64373807,0.00023026,2]
[400679822,1767778242696,-2200.0,0.00023156,2]
[400679823,1767778242705,-346.1,0.00023274,2]
[400679824,1767778242714,-2200.0,0.00023534,2]
[400679825,1767778242723,-600.0,0.00023562,2]
[400679826,1767778242732,-33454.72959,0.00023574,2]
[400679827,1767778242741,-574.12855637,0.00023574,2]
[400679828,1767778242750,-500.0,0.00023664,2]
[400679829,1767778242760,-286.8,0.000237,7]
[400679830,1767778242769,-2200.0,0.00023763,2]
[400679831,1767778242778,-2200.0,0.000238,2]
[400679832,1767778242787,-357.4,0.000239,2]
[400679833,1767778242797,-500.0,0.00023923,2]
[400679834,1767778242806,-2000.0,0.00023996,7]
[400679835,1767778242815,-23906.54289923,0.00024,2]
[400679836,1767778242823,-245.28508092,0.00024,60]
[400679837,1767778242833,-1734.693215,0.00024,2]
[400679838,1767778242842,-465.43647205,0.00024,2]
[400679839,1767778242852,-618.86,0.00024,14]
[400679840,1767778242861,-1041.66666667,0.00024,7]
[400679841,1767778242870,-750.0,0.0002411,2]
[400679842,1767778242880,-34692.55458483,0.00024122,2]
[400679843,1767778242889,-595.37131296,0.00024122,2]
[400679844,1767778242898,-504346.20009652,0.00024142,2]
[400679845,1767778242907,-187.815389,0.00024142,2]
[400679846,1767778242917,-151.0,0.00024142,2]
[400679847,1767778242926,-187.815389,0.00024142,2]
[400679848,1767778242936,-151.0,0.00024142,2]
[400679849,1767778242945,-187.815389,0.00024142,2]
[400679850,1767778242954,-187.815389,0.00024142,2]
[400679851,1767778242964,-226.840481,0.00024142,2]
[400679852,1767778242973,-440.287203,0.00024142,2]
[400679853,1767778242982,-440.287203,0.00024142,2]
[400679854,1767778242993,-440.287203,0.00024142,2]
[400679855,1767778243003,-440.287203,0.00024142,2]
[400679856,1767778243012,-151.0,0.00024142,2]
[400679857,1767778243021,-185.60635,0.00024142,2]
[400679858,1767778243030,-185.60635,0.00024142,2]
[400679859,1767778243040,-151.0,0.00024142,2]
[400679860,1767778243049,-185.60635,0.00024142,2]
[400679861,1767778243058,-151.0,0.00024142,2]
[400679862,1767778243068,-185.60635,0.00024142,2]
[400679863,1767778243078,-2200.0,0.00024142,2]
[400679864,1767778243087,-30240.28138531,0.000242,2]
[400679865,1767778243096,-2200.0,0.00024213,2]
[400679866,1767778243106,-509.31198155,0.00024228,2]
[400679867,1767778243115,-1148.14949882,0.0002426,2]
[400679868,1767778243124,-2200.0,0.00024449,2]
[400679869,1767778243134,-25963.54,0.000245,2]
[400679870,1767778243143,-2200.0,0.00024631,2]
[400679871,1767778243152,-156724.58563049,0.0002465,2]
[400679872,1767778243162,-513.79712507,0.0002465,2]
[400679873,1767778243171,-900.0,0.00024658,2]
[400679874,1767778243180,-500.0,0.00024658,2]
[400679875,1767778243190,-35976.17910447,0.0002467,2]
[400679876,1767778243200,-617.40005154,0.0002467,2]
[400679877,1767778243210,-31848.82,0.000247,3]
[400679878,1767778243219,-16821.80898001,0.00024774,2]
[400679879,1767778243229,-2000.0,0.00024796,7]
[400679880,1767778243238,-2811.62,0.000248,14]
[400679881,1767778243247,-500.0,0.00024829,2]
[400679882,1767778243257,-346.1,0.00024849,2]
[400679883,1767778243266,-181.0,0.00024877,14]
[400679884,1767778243275,-2200.0,0.00024892,2]
[400679885,1767778243285,-193.081788,0.000249,7]
[400679886,1767778243295,-151.0,0.000249,7]
[400679887,1767778243304,-151.0,0.000249,7]
[400679888,1767778243313,-151.0,0.000249,7]
[400679889,1767778243322,-151.0,0.000249,7]
[400679890,1767778243331,-151.0,0.000249,7]
[400679891,1767778243340,-151.0,0.000249,7]
[400679892,1767778243349,-151.0,0.000249,7]
[400679893,1767778243359,-151.0,0.000249,7]
[400679894,1767778243368,-151.0,0.000249,7]
[400679895,1767778243377,-151.0,0.000249,7]
[400679896,1767778243386,-151.0,0.000249,7]
[400679897,1767778243395,-151.0,0.000249,7]
[400679898,1767778243404,-151.0,0.000249,7]
[400679899,1767778243413,-276.176938,0.000249,7]
[400679900,1767778243422,-200.0,0.000249,7]
[400679901,1767778243431,-200.0,0.000249,7]
[400679902,1767778243440,-200.0,0.000249,7]
[400679903,1767778243449,-200.0,0.000249,7]
[400679904,1767778243458,-151.0,0.000249,7]
[400679905,1767778243467,-151.0,0.000249,7]
[400679906,1767778243476,-151.0,0.000249,7]
[400679907,1767778243485,-181.252366,0.000249,7]
[400679908,1767778243495,-151.0,0.000249,7]
[400679909,1767778243505,-151.0,0.000249,7]
[400679910,1767778243514,-151.0,0.000249,7]
[400679911,1767778243523,-151.0,0.000249,7]
[400679912,1767778243532,-151.0,0.000249,7]
[400679913,1767778243541,-206.889733,0.000249,7]
[400679914,1767778243550,-151.0,0.000249,7]
[400679915,1767778243559,-151.0,0.000249,7]
[400679916,1767778243567,-1626.684503,0.000249,7]
[400679917,1767778243577,-1626.684503,0.000249,7]
[400679918,1767778243587,-1626.684503,0.000249,7]
[400679919,1767778243596,-1626.684503,0.000249,7]
[400679920,1767778243606,-609.666208,0.000249,7]
[400679921,1767778243615,-609.666208,0.000249,7]
[400679922,1767778243624,-609.666208,0.000249,7]
[400679923,1767778243633,-609.666208,0.000249,7]
[400679924,1767778243643,-151.0,0.000249,7]
[400679925,1767778243653,-151.0,0.000249,7]
[400679926,1767778243662,-151.0,0.000249,7]
[400679927,1767778243671,-151.0,0.000249,7]
[400679928,1767778243680,-151.0,0.000249,7]
[400679929,1767778243690,-151.0,0.000249,7]
[400679930,1767778243700,-234.643774,0.000249,7]
[400679931,1767778243709,-289.726143,0.000249,7]
[400679932,1767778243718,-214.456704,0.000249,7]
[400679933,1767778243727,-155.076774,0.000249,7]
[400679934,1767778243736,-214.456704,0.000249,7]
[400679935,1767778243746,-214.456704,0.000249,7]
[400679936,1767778243755,-214.456704,0.000249,7]
[400679937,1767778243765,-194.927323,0.000249,7]
[400679938,1767778243775,-194.927323,0.000249,7]
[400679939,1767778243784,-194.927323,0.000249,7]
[400679940,1767778243795,-194.927323,0.000249,7]
[400679941,1767778243805,-151.0,0.000249,7]
[400679942,1767778243815,-151.0,0.000249,7]
[400679943,1767778243824,-151.0,0.000249,7]
[400679944,1767778243834,-200.632316,0.000249,7]
[400679945,1767778243843,-151.0,0.000249,7]
[400679946,1767778243853,-200.632316,0.000249,7]
[400679947,1767778243862,-189.060693,0.000249,7]
[400679948,1767778243872,-200.632316,0.000249,7]
[400679949,1767778243881,-200.632316,0.000249,7]
[400679950,1767778243891,-151.0,0.000249,7]
[400679951,1767778243901,-209.524359,0.000249,7]
[400679952,1767778243910,-151.0,0.000249,7]
[400679953,1767778243921,-209.524359,0.000249,7]
[400679954,1767778243930,-209.524359,0.000249,7]
[400679955,1767778243940,-209.524359,0.000249,7]
[400679956,1767778243950,-151.0,0.000249,7]
[400679957,1767778243959,-151.0,0.000249,7]
[400679958,1767778243969,-241.004676,0.000249,7]
[400679959,1767778243978,-241.004676,0.000249,7]
[400679960,1767778243987,-241.004676,0.000249,7]
[400679961,1767778243996,-241.004676,0.000249,7]
[400679962,1767778244006,-186.329815,0.000249,7]
[400679963,1767778244016,-186.329815,0.000249,7]
[400679964,1767778244026,-530.111159,0.000249,7]
[400679965,1767778244035,-225.672265,0.000249,7]
[400679966,1767778244048,-530.111159,0.000249,7]
[400679967,1767778244058,-186.329815,0.000249,7]
[400679968,1767778244068,-530.111159,0.000249,7]
[400679969,1767778244078,-225.672265,0.000249,7]
[400679970,1767778244088,-186.329815,0.000249,7]
[400679971,1767778244098,-225.672265,0.000249,7]
[400679972,1767778244108,-530.111159,0.000249,7]
[400679973,1767778244118,-225.672265,0.000249,7]
[400679974,1767778244128,-151.0,0.000249,7]
[400679975,1767778244138,-151.0,0.000249,7]
[400679976,1767778244147,-151.0,0.000249,7]
[400679977,1767778244157,-151.0,0.000249,7]
[400679978,1767778244166,-218.702509,0.000249,7]
[400679979,1767778244176,-218.702509,0.000249,7]
[400679980,1767778244185,-218.702509,0.000249,7]
[400679981,1767778244194,-218.702509,0.000249,7]
[400679982,1767778244203,-184.812283,0.000249,7]
[400679983,1767778244212,-151.0,0.000249,7]
[400679984,1767778244221,-184.812283,0.000249,7]
[400679986,1767778244230,-184.812283,0.000249,7]
[400679987,1767778244239,-184.812283,0.000249,7]
[400679989,1767778244248,-151.0,0.000249,7]
[400679990,1767778244258,-151.0,0.000249,7]
[400679991,1767778244267,-151.0,0.000249,7]
[400679992,1767778244277,-151.0,0.000249,7]
[400679993,1767778244286,-151.0,0.000249,7]
[400679994,1767778244298,-247.352857,0.000249,7]
[400679995,1767778244307,-247.352857,0.000249,7]
[400679996,1767778244317,-247.352857,0.000249,7]
[400679997,1767778244327,-247.352857,0.000249,7]
[400679998,1767778244336,-151.0,0.000249,7]
[400679999,1767778244345,-151.0,0.000249,7]
[400680000,1767778244355,-151.0,0.000249,7]
[400680001,1767778244364,-151.0,0.000249,7]
[400680002,1767778244373,-151.0,0.000249,7]
[400680003,1767778244383,-151.0,0.000249,7]
[400680004,1767778244392,-205.742012,0.000249,7]
[400680005,1767778244401,-151.0,0.000249,7]
[400680006,1767778244411,-205.742012,0.000249,7]
[400680007,1767778244420,-151.0,0.000249,7]
[400680008,1767778244429,-205.742012,0.000249,7]
[400680009,1767778244438,-151.0,0.000249,7]
[400680010,1767778244448,-205.742012,0.000249,7]
[400680011,1767778244457,-151.0,0.000249,7]
[400680012,1767778244467,-1664.343388,0.000249,7]
[400680013,1767778244476,-1664.343388,0.000249,7]
[400680014,1767778244490,-151.0,0.000249,7]
[400680015,1767778244499,-151.0,0.000249,7]
[400680016,1767778244508,-1016.281206,0.000249,7]
[400680017,1767778244519,-151.0,0.000249,7]
[400680018,1767778244529,-1016.281206,0.000249,7]
[400680019,1767778244538,-1016.281206,0.000249,7]
[400680020,1767778244548,-151.0,0.000249,7]
[400680021,1767778244559,-1016.281206,0.000249,7]
[400680022,1767778244569,-151.0,0.000249,7]
[400680023,1767778244578,-622309.500941,0.000249,2]
[400680024,1767778244587,-151.0,0.000249,7]
[400680025,1767778244595,-390.92977,0.000249,7]
[400680026,1767778244604,-390.92977,0.000249,7]
[400680027,1767778244614,-390.92977,0.000249,7]
[400680028,1767778244623,-207.061221,0.000249,7]
[400680029,1767778244632,-151.0,0.000249,2]
[400680030,1767778244641,-390.92977,0.000249,7]
[400680031,1767778244650,-612.995739,0.000249,7]
[400680032,1767778244661,-612.995739,0.000249,7]
[400680033,1767778244671,-612.995739,0.000249,7]
[400680034,1767778244680,-612.995739,0.000249,7]
[400680035,1767778244689,-232.576988,0.000249,7]
[400680036,1767778244699,-215.570059,0.000249,7]
[400680037,1767778244709,-206.665209,0.000249,7]
[400680038,1767778244718,-164.70126,0.000249,7]
[400680039,1767778244727,-215.570059,0.000249,7]
[400680040,1767778244737,-206.665209,0.000249,7]
[400680041,1767778244746,-206.665209,0.000249,7]
[400680042,1767778244755,-215.570059,0.000249,7]
[400680043,1767778244765,-206.665209,0.000249,7]
[400680044,1767778244774,-215.570059,0.000249,7]
[400680045,1767778244783,-634.815792,0.000249,7]
[400680046,1767778244794,-634.815792,0.000249,7]
[400680047,1767778244803,-151.0,0.000249,7]
[400680048,1767778244812,-634.815792,0.000249,7]
[400680049,1767778244822,-151.0,0.000249,7]
[400680050,1767778244832,-634.815792,0.000249,7]
[400680051,1767778244841,-187.815389,0.000249,7]
[400680052,1767778244850,-151.0,0.000249,7]
[400680053,1767778244859,-187.815389,0.000249,7]
[400680054,1767778244868,-209.486994,0.000249,7]
[400680055,1767778244878,-298.315005,0.000249,7]
[400680056,1767778244887,-187.815389,0.000249,7]
[400680057,1767778244896,-298.315005,0.000249,7]
[400680058,1767778244906,-187.815389,0.000249,7]
[400680059,1767778244915,-298.315005,0.000249,7]
[400680060,1767778244925,-298.315005,0.000249,7]
[400680061,1767778244935,-440.287203,0.000249,7]
[400680062,1767778244945,-440.287203,0.000249,7]
[400680063,1767778244955,-440.287203,0.000249,7]
[400680064,1767778244964,-440.287203,0.000249,7]
[400680065,1767778244974,-151.0,0.000249,7]
[400680066,1767778244983,-185.60635,0.000249,7]
[400680067,1767778244993,-185.60635,0.000249,7]
[400680068,1767778245002,-151.0,0.000249,7]
[400680069,1767778245011,-185.60635,0.000249,7]
[400680070,1767778245022,-164.004799,0.000249,7]
[400680071,1767778245032,-185.60635,0.000249,7]
[400680072,1767778245043,-2200.0,0.00024937,2]
[400680073,1767778245052,-500.0,0.00024952,2]
[400680074,1767778245064,-2660.39322093,0.00025,2]
[400680075,1767778245074,-2673.38990505,0.00025,2]
[400680076,1767778245084,-10364.0,0.00025,2]
[400680077,1767778245095,-500.0,0.00025,2]
[400680078,1767778245105,-300.0,0.00025,30]
[400680079,1767778245115,-1363.86254436,0.00025,2]
[400680080,1767778245128,-759.01355597,0.00025,2]
[400680081,1767778245140,-1041.66666667,0.00025,7]
[400680082,1767778245150,-1041.66666667,0.00025,3]
[400680083,1767778245161,-1703.61772074,0.00025081,2]
[400680084,1767778245172,-2200.0,0.00025104,7]
[400680085,1767778245182,-2200.0,0.00025163,7]
[400680086,1767778245193,-579.85119945,0.000252,5]
[400680087,1767778245203,-250.0,0.00025205,2]
[400680088,1767778245213,-1181.07580657,0.00025205,2]
[400680089,1767778245223,-5889.0957183,0.00025218,2]
[400680090,1767778245232,-640.24385345,0.00025218,2]
[400680091,1767778245243,-500.0,0.00025463,7]
[400680092,1767778245252,-900.0,0.00025469,3]
[400680093,1767778245262,-1000.0,0.000255,2]
[400680094,1767778245272,-191.37491647,0.00025518,15]
[400680095,1767778245285,-280.28268334,0.00025561,7]
[400680096,1767778245295,-2000.0,0.00025597,7]
[400680097,1767778245304,-243.07,0.000257,7]
[400680098,1767778245314,-350.0,0.00025753,2]
[400680099,1767778245324,-663.93287602,0.00025766,2]
[400680100,1767778245334,-1924.25,0.000258,7]
[400680101,1767778245344,-264.09023301,0.00025835,2]
[400680102,1767778245353,-302.06543706,0.00025835,2]
[400680103,1767778245363,-264.09023301,0.00025991,9]
[400680104,1767778245373,-1041.66666667,0.00026,7]
[400680105,1767778245383,-169454.50312221,0.00026,30]
[400680106,1767778245393,-17467.00445744,0.00026,2]
[400680107,1767778245402,-161.0,0.00026,5]
[400680108,1767778245412,-1041.66666667,0.00026,30]
[400680109,1767778245422,-302.06543706,0.00026146,17]
[400680110,1767778245432,-264.09023301,0.00026146,17]
[400680111,1767778245442,-194.56620473,0.0002616,2]
[400680112,1767778245452,-553.38705688,0.00026228,2]
[400680113,1767778245463,-2200.0,0.00026298,7]
[400680114,1767778245473,-450.0,0.00026301,2]
[400680115,1767778245484,-264.09023301,0.00026301,25]
[400680116,1767778245496,-688.49839244,0.00026314,2]
[400680117,1767778245505,-500.0,0.00026375,7]
[400680119,1767778245515,-2000.0,0.00026397,7]
[400680120,1767778245525,-1974.17602471,0.00026413,2]
[400680121,1767778245535,-346.1,0.00026425,2]
[400680122,1767778245546,-302.06543706,0.00026457,32]
[400680123,1767778245555,-264.09023301,0.00026457,32]
[400680125,1767778245565,-286.8,0.000265,7]
[400680127,1767778245575,-200.0,0.0002654,14]
[400680129,1767778245584,-500.0,0.00026543,7]
[400680130,1767778245594,-264.09023301,0.00026612,40]
[400680131,1767778245604,-151.0,0.00026646,2]
[400680132,1767778245615,-156.587,0.00026646,2]
[400680133,1767778245625,-151.76560532,0.00026646,2]
[400680134,1767778245635,-151.0,0.00026646,2]
[400680135,1767778245645,-151.0,0.00026646,2]
[400680136,1767778245655,-241.40612291,0.00026646,2]
[400680137,1767778245665,-15924.41,0.000267,3]
[400680138,1767778245675,-302.06543706,0.00026768,48]
[400680139,1767778245686,-264.09023301,0.00026768,48]
[400680140,1767778245696,-191.37491647,0.00026776,17]
[400680141,1767778245708,-25963.54,0.000268,2]
[400680142,1767778245718,-160.185086,0.000268,7]
[400680143,1767778245729,-1041.66666667,0.000268,30]
[400680144,1767778245740,-550.0,0.00026849,2]
[400680145,1767778245750,-713.97283296,0.00026862,2]
[400680146,1767778245759,-2811.62,0.000269,14]
[400680147,1767778245770,-264.09023301,0.00026923,56]
[400680148,1767778245780,-210.40515533,0.00026987,2]
[400680149,1767778245790,-500.0,0.00026987,2]
[400680150,1767778245801,-500.0,0.00026987,2]
[400680151,1767778245811,-272.15124773,0.00026987,2]
[400680152,1767778245821,-174.35129213,0.00026987,2]
[400680153,1767778245831,-1815.6497538,0.00027,2]
[400680155,1767778245841,-600.0,0.00027,14]
[400680156,1767778245851,-261657.74966145,0.00027,7]
[400680157,1767778245860,-187.815389,0.00027,7]
[400680158,1767778245870,-151.0,0.00027,7]
[400680159,1767778245880,-187.815389,0.00027,7]
[400680160,1767778245891,-187.815389,0.00027,7]
[400680161,1767778245900,-187.815389,0.00027,7]
[400680162,1767778245910,-440.287203,0.00027,7]
[400680163,1767778245920,-440.287203,0.00027,7]
[400680164,1767778245929,-440.287203,0.00027,7]
[400680165,1767778245939,-440.287203,0.00027,7]
[400680166,1767778245949,-185.60635,0.00027,7]
[400680167,1767778245959,-185.60635,0.00027,7]
[400680168,1767778245970,-151.0,0.00027,7]
[400680169,1767778245981,-185.60635,0.00027,7]
[400680170,1767778245991,-185.60635,0.00027,7]
[400680171,1767778246001,-2200.0,0.00027021,7]
[400680172,1767778246012,-302.06543706,0.00027078,63]
[400680173,1767778246023,-264.09023301,0.00027078,63]
[400680174,1767778246033,-500.0,0.00027095,7]
[400680175,1767778246043,-500.0,0.00027124,2]
[400680176,1767778246053,-500.0,0.00027124,2]
[400680177,1767778246064,-2000.0,0.00027197,7]
[400680178,1767778246075,-2200.0,0.00027204,7]
[400680179,1767778246085,-264.09023301,0.00027234,71]
[400680180,1767778246095,-2200.0,0.00027244,7]
[400680181,1767778246105,-154.82317524,0.00027261,2]
[400680182,1767778246115,-306.8595936,0.00027261,2]
[400680183,1767778246125,-151.71242224,0.00027261,2]
[400680184,1767778246135,-10000.0,0.00027297,2]
[400680185,1767778246147,-2200.0,0.00027359,7]
[400680186,1767778246158,-302.06543706,0.00027389,79]
[400680187,1767778246169,-264.09023301,0.00027389,79]
[400680188,1767778246181,-500.0,0.00027397,2]
[400680189,1767778246191,-500.0,0.00027397,2]
[400680190,1767778246202,-500.0,0.00027397,2]
[400680191,1767778246212,-459.12,0.00027397,2]
[400680192,1767778246222,-500.0,0.00027397,2]
[400680193,1767778246232,-458.7922487,0.00027397,2]
[400680194,1767778246241,-488.58553069,0.00027397,2]
[400680195,1767778246252,-500.0,0.00027397,2]
[400680196,1767778246262,-500.0,0.00027397,2]
[400680197,1767778246273,-617.55279622,0.00027397,2]
[400680198,1767778246284,-427.62515134,0.00027397,2]
[400680199,1767778246295,-5597.0348848,0.00027397,2]
[400680200,1767778246306,-500.0,0.00027397,2]
[400680201,1767778246316,-500.0,0.00027397,2]
[400680202,1767778246326,-500.0,0.00027397,2]
[400680203,1767778246336,-836.74,0.00027397,2]
[400680204,1767778246347,-500.0,0.00027397,2]
[400680205,1767778246358,-500.0,0.00027397,2]
[400680206,1767778246368,-215.14710276,0.00027397,2]
[400680207,1767778246378,-500.0,0.00027397,2]
[400680208,1767778246389,-500.0,0.00027397,2]
[400680209,1767778246400,-500.0,0.00027397,2]